[Event "GER-ch Youth-U16 2022"]
[Site "Willingen"]
[Date "2022.06.05"]
[Round "2.3"]
[White "Farokhi, Keyvan"]
[Black "Bui, Bao Anh Le"]
[Result "1/2-1/2"]
[ECO "B90"]
[WhiteElo "2360"]
[BlackElo "2127"]
[Annotator "TA"]
[PlyCount "81"]
[EventDate "2022.06.05"]
[EventType "swiss"]
[EventRounds "9"]
[EventCountry "GER"]
[SourceTitle "playchess.com"]
[Source "ChessBase"]
[SourceQuality "1"]
[TimeControl "40/4500+30:900+30"]

{[%evp 15,81,13,8,6,18,19,34,-5,10,8,45,0,18,0,0,0,0,-15,14,-31,-30,-29,-42,-48,-47,-56,-15,-39,-9,-8,-15,-33,-14,-12,13,-14,0,0,42,64,56,0,45,33,223,185,204,160,155,154,138,60,51,27,27,27,27,0,0,-22,-23,-27,-8,-8,-8,-8,-8,-8]} 1. e4 {[%emt 0:00:00]} c5 {[%emt 0:00:00]} 2. Nf3 {[%emt 0:00:00][%cal Bg1f3,Bf3d4,Bd4e2,Be2g3,Bg3f5][%mdl 32]} d6 {[%emt 0:00:00]} 3. d4 {[%emt 0:00:00]} cxd4 {[%emt 0:00:00]} 4. Nxd4 {[%emt 0:00:00]} Nf6 {[%emt 0:00:00]} 5. Nc3 {[%emt 0:00:00]} a6 {[%emt 0:00:00]} 6. Bd3 {[%emt 0:00:00]} e5 {[%emt 0:00:00]} 7. Nde2 {[%emt 0:00:00]} Be7 {[%emt 0:00:00]} 8. O-O {[%emt 0:00:00]} O-O {[%emt 0:00:00]} 9. Ng3 {[%emt 0:00:00] B90: Sicilian Najdorf: Unusual White 6th moves, 6 Be3 Ng4 and 6 Be3 e5.} b5 {[%emt 0:03:23]} 10. Bg5 {[%emt 0:19:53]} Be6 {[%emt 0:13:24]} 11. Qf3 {[%emt 0:06:24] White is slightly better.} Nbd7 {[%emt 0:19:54]} (11... Bg4 $5 12. Qe3 Nbd7 $11) 12. Nf5 {[%emt 0:03:32]} b4 {[%emt 0:06:37] [#] White must now prevent ...Bxf5.} 13. Ne2 {[%emt 0:07:18] [#]} h6 $146 {[%emt 0:17:01]} ({Predecessor:} 13... Bxf5 14. Qxf5 Nc5 15. Rad1 Qc8 16. Ng3 Ne6 17. Be3 g6 18. Qh3 h5 19. Ne2 Ng4 {0-1 (41) Wilhelms,D (2126)-Aguiar Cunha,L (2049) Brasilia 2010}) 14. Bh4 {[%emt 0:10:05]} Bxf5 {[%emt 0:09:11]} 15. Qxf5 {[%emt 0:00:56]} g6 {[%emt 0:00:29]} 16. Qf3 {[%emt 0:00:57]} Nh5 {[%emt 0:07:49]} 17. Bg3 {[%emt 0:05:10]} Qc7 {[%emt 0:02:14]} 18. c3 {[%emt 0:02:48]} a5 {[%emt 0:00:57]} 19. cxb4 {[%emt 0:03:05]} axb4 {[%emt 0:00:05]} 20. a3 {[%emt 0:00:05]} Qb7 {[%emt 0:02:36]} 21. Bc4 {[%emt 0:06:36]} Nb6 {[%emt 0:00:23]} 22. Bb3 {[%emt 0:02:47]} bxa3 {[%emt 0:00:31]} 23. bxa3 {[%emt 0:00:30]} Kg7 {[%emt 0:00:22]} 24. Rfb1 {[%emt 0:00:44]} Qd7 {[%emt 0:00:26]} 25. Qd3 {[%emt 0:01:19][%cal Ob3f7]} (25. Nc3 {keeps more tension.} Ra5 26. a4 Qc6 27. Nd5) 25... Nxg3 {[%emt 0:01:16]} 26. hxg3 {[%emt 0:00:30]} f5 {[%emt 0:00:35]} 27. Nc3 {[%emt 0:01:03]} Ra5 {[%emt 0:00:51]} 28. Bd5 {[%emt 0:08:23]} (28. Nd5 $14 Bd8 29. a4) 28... fxe4 {[%emt 0:00:34]} 29. Bxe4 {[%emt 0:00:31]} Na4 {[%emt 0:00:46]} (29... Bd8 $14) 30. Rb7 {[%emt 0:00:56]} ({Inferior is} 30. Bxg6 Nxc3 31. Qxc3 Qa7 $11) 30... Qe6 {[%emt 0:00:23]} 31. Bd5 {[%emt 0:02:18]} Qf6 {[%emt 0:00:30] [#] Threatens to win with ...Nxc3.} 32. Ne4 {[%emt 0:02:40] White is more active.} Nc5 {[%emt 0:00:20][%cal Ba4c5,Bc5d3,Bd3f2][%mdl 32]} 33. Nxf6 {[%emt 0:01:24] Dancing on a razor blade.} (33. Nxc5 $16 Rxc5 34. Rf1) 33... Nxd3 $14 {[%emt 0:00:05]} 34. Rxe7+ {[%emt 0:00:05]} (34. Nh5+ $5 Kh8 35. Bc4 $14) 34... Kxf6 {[%emt 0:00:05]} 35. Re6+ {[%emt 0:00:05]} Kg5 {[%emt 0:01:17]} 36. Rxd6 {[%emt 0:01:50]} Nxf2 {[%emt 0:00:33]} 37. Re1 {[%emt 0:01:32]} Ng4 {[%emt 0:00:35]} 38. Bf3 {[%emt 0:00:27]} h5 {[%emt 0:00:41]} 39. Re6 {[%emt 0:00:32] The position is equal.} Rxa3 {[%emt 0:00:15]} 40. Bxg4 {[%emt 0:00:11]} hxg4 {[%emt 0:00:08]} 41. R6xe5+ {[%emt 0:00:00] Weighted Error Value: White=0.18 (very precise) /Black=0.24 (precise)} 1/2-1/2

[Event "GER-ch Youth-U16 2022"]
[Site "Willingen"]
[Date "2022.06.05"]
[Round "2.4"]
[White "Jaskulski, Jan"]
[Black "Sidletskyi, Ivan"]
[Result "0-1"]
[ECO "B36"]
[WhiteElo "1727"]
[BlackElo "2084"]
[Annotator "TA"]
[PlyCount "94"]
[EventDate "2022.06.05"]
[EventType "swiss"]
[EventRounds "9"]
[EventCountry "GER"]
[SourceTitle "playchess.com"]
[Source "ChessBase"]
[SourceQuality "1"]
[TimeControl "40/4500+30:900+30"]

{[%evp 29,94,37,41,-13,-14,-6,-13,-13,4,0,0,0,2,6,0,-6,0,0,0,0,0,0,0,-39,-40,-37,-39,-37,-14,-14,-9,-9,-13,-895,-877,-913,-900,-861,-833,-987,-955,-862,-754,-754,-749,-738,-722,-832,-797,-1515,-1497,-1132,-963,-29978,-29979,-29979,-29980,-29980,-29981,-29983,-29982,-29982,-29982,-29983,-29984,-29984,-29985]} 1. e4 {[%emt 0:00:00]} c5 {[%emt 0:00:00]} 2. Nf3 {[%emt 0:00:00]} Nc6 {[%emt 0:00:00]} 3. d4 {[%emt 0:00:00]} cxd4 {[%emt 0:00:00]} 4. Nxd4 {[%emt 0:00:00]} g6 {[%emt 0:00:00]} 5. c4 {[%emt 0:00:00]} Nf6 {[%emt 0:00:00]} 6. Nc3 {[%emt 0:00:00]} Nxd4 {[%emt 0:00:00]} 7. Qxd4 {[%emt 0:00:00]} d6 {[%emt 0:00:00]} 8. Be3 {[%emt 0:00:00]} Bg7 {[%emt 0:00:00]} 9. f3 {[%emt 0:00:00]} O-O {[%emt 0:00:00]} 10. Qd2 {[%emt 0:00:00]} Be6 {[%emt 0:00:00]} 11. Rc1 {[%emt 0:00:00]} Qa5 {[%emt 0:00:00]} 12. Be2 {[%emt 0:00:00]} Rfc8 {[%emt 0:01:52]} 13. b3 {[%emt 0:12:15]} a6 {[%emt 0:01:28]} 14. Na4 {[%emt 0:09:14]} Qxd2+ {[%emt 0:06:09]} 15. Kxd2 {[%emt 0:00:13]} Nd7 {[%emt 0:00:18]} 16. Nb6 {[%emt 0:03:08] B36: Sicilian: Maroczy Bind: Gurgenidze System.} (16. g4 $14) 16... Nxb6 $11 {[%emt 0:00:13]} 17. Bxb6 {[%emt 0:00:04]} Rc6 {[%emt 0:10:58]} 18. Be3 {[%emt 0:00:31] [#] The position is equal.} b5 $146 {[%emt 0:02:54]} ({Predecessor:} 18... Bb2 19. Rc2 Ba3 20. Bd3 Rac8 21. g4 Bc5 22. Rhc1 Ba3 23. Rb1 b5 24. cxb5 Rxc2+ 25. Bxc2 axb5 {0-1 (47) Terletsky,O (2176)-Jary,S (2275) Chess.com INT 2022}) 19. cxb5 {[%emt 0:08:37]} Rxc1 {[%emt 0:00:11]} 20. Rxc1 {[%emt 0:00:07]} axb5 {[%emt 0:00:07]} 21. Rc2 {[%emt 0:00:27]} b4 {[%emt 0:05:07]} 22. Bd3 {[%emt 0:03:41]} f5 {[%emt 0:03:05]} 23. Ke2 {[%emt 0:04:58]} fxe4 {[%emt 0:04:43]} 24. Bxe4 {[%emt 0:07:39]} d5 {[%emt 0:00:30][%cal Bd6d5,Bd5d4][%mdl 32]} 25. Bd3 {[%emt 0:01:02]} Bc3 {[%emt 0:01:05]} 26. Bc5 {[%emt 0:13:06]} Rc8 {[%emt 0:04:46]} 27. Be3 {[%emt 0:08:51]} ({Don't blunder} 27. Bxe7 $2 Re8 28. Bxb4 Bxb4 $19) 27... Kf7 {[%emt 0:02:16]} 28. Bd2 {[%emt 0:03:54]} d4 {[%emt 0:00:52]} 29. Bg5 {[%emt 0:04:03]} Rc5 {[%emt 0:03:04]} 30. h4 {[%emt 0:01:55]} Bd7 {[%emt 0:02:56]} 31. Bc4+ $2 {[%emt 0:02:01][%mdl 8192] [#] Loses the game.} (31. Kd1 $11) 31... Rxc4 $1 $19 {[%emt 0:05:30][%mdl 512]} 32. bxc4 {[%emt 0:03:55][%mdl 4096] Endgame KRB-KB} (32. Kd1 Rc7) 32... d3+ $1 {[%emt 0:00:12][%mdl 64] Decoy} 33. Kxd3 {[%emt 0:00:53]} Bf5+ {[%emt 0:00:08][%mdl 64] Skewer, Deflection. This bishop pair is nice.} 34. Ke3 {[%emt 0:00:36]} Bxc2 {[%emt 0:00:10]} 35. c5 {[%emt 0:01:05]} Ba4 {[%emt 0:00:41]} 36. Kd3 {[%emt 0:00:18]} Bb5+ {[%emt 0:00:13]} 37. Kc2 {[%emt 0:00:08]} Bd4 {[%emt 0:00:15]} 38. Kb3 {[%emt 0:01:01]} Bxc5 {[%emt 0:00:16]} 39. h5 {[%emt 0:00:34]} gxh5 {[%emt 0:00:07]} 40. Bd2 {[%emt 0:00:26]} Bd7 {[%emt 0:00:15] aiming for ...Be6+.} 41. Bxb4 {[%emt 0:15:45]} Be6+ {[%emt 0:15:09] Black mates.} 42. Kc3 {[%emt 0:00:07]} Bxb4+ {[%emt 0:00:07]} 43. Kxb4 {[%emt 0:00:02]} Bxa2 {[%emt 0:00:11]} 44. g3 {[%emt 0:00:07]} Kf6 {[%emt 0:00:08]} 45. Kc3 {[%emt 0:00:43]} Bd5 {[%emt 0:00:09]} 46. f4 {[%emt 0:00:21]} Kf5 {[%emt 0:00:07]} 47. Kd4 {[%emt 0:00:05]} e6 {[%emt 0:00:27] Weighted Error Value: White=0.92/Black=0.14 (very precise)} 0-1

[Event "GER-ch Youth-U16 2022"]
[Site "Willingen"]
[Date "2022.06.05"]
[Round "2.5"]
[White "Laux, Dominik"]
[Black "Chassard, Cedric"]
[Result "1-0"]
[ECO "B90"]
[WhiteElo "2263"]
[BlackElo "2051"]
[Annotator "TA"]
[PlyCount "107"]
[EventDate "2022.06.05"]
[EventType "swiss"]
[EventRounds "9"]
[EventCountry "GER"]
[SourceTitle "playchess.com"]
[Source "ChessBase"]
[SourceQuality "1"]
[TimeControl "40/4500+30:900+30"]

{[%evp 17,107,23,15,27,25,35,37,38,27,36,55,19,21,37,41,31,30,31,60,54,59,35,61,51,91,37,50,66,62,0,25,0,91,92,91,96,95,98,92,94,97,86,69,71,110,96,158,164,172,171,182,182,228,179,310,0,199,181,165,165,180,95,101,95,108,109,161,131,137,105,268,260,267,242,250,250,250,243,243,243,414,412,538,87,1667,1451,29970,11423,29982,29983,29982,5222]} 1. e4 {[%emt 0:00:00]} c5 {[%emt 0:00:00]} 2. Nf3 {[%emt 0:00:00]} d6 {[%emt 0:00:00]} 3. d4 {[%emt 0:00:00]} cxd4 {[%emt 0:00:00]} 4. Nxd4 {[%emt 0:00:00]} Nf6 {[%emt 0:00:00]} 5. Nc3 {[%emt 0:00:00]} a6 {[%emt 0:00:00]} 6. Be3 {[%emt 0:00:00]} e5 {[%emt 0:00:00]} 7. Nb3 {[%emt 0:00:00]} Be6 {[%emt 0:00:00]} 8. f3 {[%emt 0:00:00]} h5 {[%emt 0:00:00]} 9. Qd2 {[%emt 0:00:00]} Nbd7 {[%emt 0:00:00]} 10. Nd5 $1 {[%emt 0:00:00] The main line 10.Nd5 scores better than 10.0-0-0. B90: Sicilian Najdorf: Unusual White 6th moves, 6 Be3 Ng4 and 6 Be3 e5.} Bxd5 {[%emt 0:00:00]} 11. exd5 {[%emt 0:00:00]} g6 {[%emt 0:00:00]} 12. O-O-O {[%emt 0:00:00] White is slightly better.} Bg7 {[%emt 0:00:00]} 13. Kb1 {[%emt 0:00:00]} Qc7 {[%emt 0:00:35]} 14. Rg1 {[%emt 0:01:31]} Rc8 {[%emt 0:12:38] [#]} 15. c4 $146 {[%emt 0:04:45]} ({Predecessor:} 15. Rc1 e4 16. c4 O-O 17. h3 h4 18. f4 Nh5 19. g4 Ng3 20. Bf2 Nxf1 21. Rgxf1 {½-½ (40) Gulevich,A (2305)-Balutescu,M (2369) ICCF email 2016}) 15... b6 {[%emt 0:05:21]} 16. Be2 {[%emt 0:04:15]} Nc5 {[%emt 0:02:27]} 17. Qc2 {[%emt 0:10:42]} Qd7 {[%emt 0:07:38]} 18. Nxc5 {[%emt 0:05:50]} bxc5 {[%emt 0:08:03]} 19. Rd3 {[%emt 0:05:56]} O-O {[%emt 0:02:15]} 20. Ra3 {[%emt 0:01:08]} Qb7 {[%emt 0:03:15]} 21. Bd2 {[%emt 0:04:07]} (21. Bc1 $16) 21... Rb8 {[%emt 0:03:39]} 22. Bc3 {[%emt 0:03:39]} Rfe8 {[%emt 0:02:26]} 23. Qa4 {[%emt 0:03:30]} (23. g4 $14) 23... Ra8 {[%emt 0:02:49]} 24. Rb3 {[%emt 0:04:45]} Qd7 {[%emt 0:03:19]} (24... Qc8 $11) 25. Qxd7 $16 {[%emt 0:02:24]} Nxd7 {[%emt 0:00:07]} 26. Rb7 $36 {[%emt 0:00:14][%mdl 2048] White is really pushing.} Nf6 {[%emt 0:01:29]} 27. Rb6 {[%emt 0:02:57]} Bf8 {[%emt 0:00:57]} 28. Bd1 $1 {[%emt 0:03:10]} Reb8 {[%emt 0:01:16]} 29. Rxb8 {[%emt 0:01:32] White is more active.} Rxb8 {[%emt 0:00:04]} 30. Ba4 {[%emt 0:01:40] Against Nd7} Be7 {[%emt 0:03:21]} 31. Kc2 {[%emt 0:03:06]} Kf8 {[%emt 0:02:22]} (31... Bd8 $142) 32. a3 $1 {[%emt 0:01:37]} Bd8 {[%emt 0:02:39]} 33. b4 {[%emt 0:01:54] Inhibits a5.} Bb6 {[%emt 0:01:13][%cal Of6d5]} 34. Rb1 {[%emt 0:00:26]} Bc7 {[%emt 0:01:30]} (34... Bd8 {was called for.} 35. bxc5 Rxb1 36. Kxb1 dxc5 37. Bxe5 Ke7) 35. Re1 {[%emt 0:04:30] Hoping for f4.} Bb6 {[%emt 0:01:07]} (35... Ke7 $142 36. bxc5 dxc5) 36. Rb1 {[%emt 0:05:48] aiming for bxc5.} Bc7 $1 {[%emt 0:00:54]} 37. bxc5 {[%emt 0:05:20]} dxc5 {[%emt 0:04:15]} 38. Re1 {[%emt 0:00:07] Threatens to win with f4.} Ke7 {[%emt 0:01:55]} 39. Bxe5 {[%emt 0:03:24]} (39. g3 $18) 39... Bxe5 {[%emt 0:00:15]} 40. Rxe5+ $18 {[%emt 0:00:02][%mdl 4096] Endgame KRB-KRN} Kd6 {[%emt 0:00:16]} 41. Re1 {[%emt 0:15:53]} Rb7 {[%emt 0:22:41]} (41... h4 $16 42. g3 Rb7) 42. Bc6 {[%emt 0:04:43]} Rb8 {[%emt 0:00:40]} 43. g3 {[%emt 0:00:49]} Ng8 $2 {[%emt 0:01:11]} (43... h4 $16 {keeps fighting.}) 44. Re8 $1 {[%emt 0:00:00]} Rxe8 {[%emt 0:00:00]} 45. Bxe8 {[%emt 0:00:00] KB-KN} Ke7 {[%emt 0:00:00]} 46. Bc6 {[%emt 0:00:00] Kb3 is the strong threat.} Nh6 {[%emt 0:00:00]} 47. Kb3 {[%emt 0:00:00] Black must now prevent Bb7.} Nf5 {[%emt 0:00:00] [#]} 48. Bb7 $1 {[%emt 0:00:00]} h4 $2 {[%emt 0:00:00]} (48... Kd7 49. Bxa6 h4 50. gxh4 Nxh4 51. Bb5+ Kc7) 49. Bxa6 {[%emt 0:00:00]} Nxg3 {[%emt 0:00:00] [#]} 50. a4 $2 {[%emt 0:00:00]} ({Wrong is} 50. hxg3 $2 hxg3 51. Ka4 g2 $19) (50. Ka4 $1 $18 {and the rest is easy.}) 50... Nf1 $2 {[%emt 0:00:00][%mdl 8192]} (50... Kd7 $16 51. a5 (51. hxg3 $2 hxg3 52. d6 g2 $19) 51... Nf5) 51. a5 {[%emt 0:00:00][%cal Ba4a5,Ba5a6][%mdl 32] And now Bb7 would win.} Kd8 {[%emt 0:00:00]} 52. Bb7 {[%emt 0:00:00] Threatening mate with d6.} Nd2+ {[%emt 0:00:00]} 53. Kc3 {[%emt 0:00:00]} Nxf3 {[%emt 0:00:00]} 54. a6 {[%emt 0:00:00] Weighted Error Value: White=0.27 (precise) /Black=0.51} 1-0

[Event "GER-ch Youth-U16 2022"]
[Site "Willingen"]
[Date "2022.06.05"]
[Round "2.6"]
[White "Ohler, Julius"]
[Black "Hommer, Jeremy"]
[Result "1/2-1/2"]
[ECO "A46"]
[WhiteElo "2011"]
[BlackElo "2152"]
[Annotator "TA"]
[PlyCount "46"]
[EventDate "2022.06.05"]
[EventType "swiss"]
[EventRounds "9"]
[EventCountry "GER"]
[SourceTitle "playchess.com"]
[Source "ChessBase"]
[SourceQuality "1"]
[TimeControl "40/4500+30:900+30"]

{[%evp 10,46,25,24,40,40,35,29,43,35,41,39,45,40,60,29,31,30,30,22,18,11,12,5,14,15,9,0,0,5,17,5,13,13,4,16,12,14,12]} 1. d4 {[%emt 0:00:00]} Nf6 {[%emt 0:00:00]} 2. Nf3 {[%emt 0:00:00]} e6 {[%emt 0:00:00]} 3. Bg5 {[%emt 0:00:00]} c5 {[%emt 0:00:00]} 4. c3 {[%emt 0:00:00]} cxd4 {[%emt 0:07:34]} 5. cxd4 {[%emt 0:00:00]} Qa5+ {[%emt 0:01:35]} 6. Bd2 {[%emt 0:00:00]} Bb4 {[%emt 0:02:17] [#] A46: 1 d4 Nf6 2 Nf3 e6: Torre, London and Colle Systems.} 7. a3 $146 {[%emt 0:00:00]} ({Predecessor:} 7. Nc3 O-O 8. e4 d5 9. e5 Ne4 10. Bd3 Nxd2 11. Qxd2 b6 12. h4 Ba6 13. Rh3 Rc8 14. Ng1 Bxd3 15. Rxd3 {0-1 (38) Elorta,D (2409)-Nguyen,V (2369) Da Nang 2008}) 7... Bxd2+ {[%emt 0:01:17]} 8. Qxd2 {[%emt 0:00:00]} Qxd2+ {[%emt 0:03:19] White has an edge.} 9. Nbxd2 {[%emt 0:00:00]} d5 {[%emt 0:00:45]} 10. e3 {[%emt 0:00:00]} Bd7 {[%emt 0:01:39]} 11. Bd3 {[%emt 0:00:00]} Nc6 {[%emt 0:00:53][%cal Bb8c6,Bc6a7,Ba7c8][%mdl 32]} 12. Ke2 {[%emt 0:01:00]} Ke7 {[%emt 0:01:11]} 13. Rhc1 {[%emt 0:00:13]} a5 {[%emt 0:07:12]} 14. Rc2 {[%emt 0:04:28]} Rhc8 {[%emt 0:02:07] The position is equal.} 15. Rac1 {[%emt 0:02:47]} Na7 {[%emt 0:05:21]} 16. Ne5 {[%emt 0:02:05]} (16. Nb1 {feels hotter.} Bb5 17. Nc3 Bxd3+ 18. Kxd3 Nd7 19. Nd2) 16... Rxc2 $1 {[%emt 0:05:54]} 17. Rxc2 {[%emt 0:03:02]} Rc8 {[%emt 0:00:07] Prevents Rc7.} 18. Rxc8 {[%emt 0:02:21]} Nxc8 {[%emt 0:01:03]} 19. f3 {[%emt 0:03:37]} Na7 {[%emt 0:00:44]} 20. Nb1 {[%emt 0:10:12]} Bb5 {[%emt 0:07:16]} 21. Nc3 {[%emt 0:00:18]} Bxd3+ {[%emt 0:00:07]} 22. Kxd3 {[%emt 0:00:27]} Nc6 {[%emt 0:10:03]} 23. Nxc6+ {[%emt 0:08:40]} bxc6 {[%emt 0:00:05] Weighted Error Value: White=0.05 (flawless) /Black=0.02 (flawless)} 1/2-1/2

[Event "GER-ch Youth-U16 2022"]
[Site "Willingen"]
[Date "2022.06.05"]
[Round "2.7"]
[White "Bakiev, Diyor"]
[Black "Lerchl, Clemens"]
[Result "0-1"]
[ECO "B22"]
[WhiteElo "2157"]
[BlackElo "1843"]
[Annotator "TA"]
[PlyCount "88"]
[EventDate "2022.06.05"]
[EventType "swiss"]
[EventRounds "9"]
[EventCountry "GER"]
[SourceTitle "playchess.com"]
[Source "ChessBase"]
[SourceQuality "1"]
[TimeControl "40/4500+30:900+30"]

{[%evp 10,88,38,20,37,35,37,37,42,33,33,31,29,-19,38,38,20,25,34,22,25,20,21,17,50,12,37,47,89,68,113,108,103,0,92,62,65,66,65,60,68,56,61,28,44,31,31,27,27,-5,310,309,266,15,155,93,106,22,19,0,0,0,64,-670,-569,-29971,60,-195,0,-532,-523,-29976,-29976,-29980,-29981,-29980,-29980,-29986,-29987,-29987,-29986]} 1. e4 {[%emt 0:00:00]} c5 {[%emt 0:00:00]} 2. c3 {[%emt 0:00:00]} d5 {[%emt 0:00:00]} 3. exd5 {[%emt 0:00:00]} Qxd5 {[%emt 0:00:00]} 4. d4 {[%emt 0:00:00]} Nc6 {[%emt 0:00:00]} 5. Nf3 {[%emt 0:00:00]} Bf5 {[%emt 0:00:00]} 6. Be3 {[%emt 0:00:00]} e6 {[%emt 0:00:00] 6...cxd4 is a critical line. B22: Sicilian: 2 c3.} 7. Na3 {[%emt 0:00:00]} cxd4 {[%emt 0:00:00] [#]} 8. Nb5 {[%emt 0:00:00] Strongly threatening Nc7+.} O-O-O {[%emt 0:00:00] Prevents Nc7. White is slightly better.} 9. Nfxd4 {[%emt 0:00:00]} Bc5 {[%emt 0:00:00] [#]} 10. Nxc6 $146 {[%emt 0:25:25]} (10. Nxf5 Qxf5 11. Qf3 Bxe3 12. fxe3 Nf6 $11) ({Predecessor:} 10. Nxf5 Qxf5 11. Nd4 Nxd4 12. cxd4 Bxd4 13. Rc1+ Kb8 14. Be2 Bc3+ 15. Kf1 Rxd1+ 16. Bxd1 {0-1 (27) Quishpe Vaca,A (1940)-Ruiz Castillo,J (2393) Bogota 2015}) 10... Qxc6 {[%emt 0:00:00]} 11. Qa4 {[%emt 0:01:39]} (11. Nd4 {is more appropriate.} Qd5 12. Qb3 (12. Nxf5 Qxf5 13. Qf3 Bxe3 $11)) 11... a6 {[%emt 0:04:36]} (11... Bxe3 $11 12. fxe3 Qd5) 12. Na7+ $14 {[%emt 0:05:48]} Bxa7 {[%emt 0:00:05]} 13. Qxc6+ {[%emt 0:00:04]} bxc6 {[%emt 0:00:04]} 14. Bxa7 {[%emt 0:00:09] Threatens to win with Bb6.} Kb7 {[%emt 0:02:11] Prevents Bb6.} 15. Be3 {[%emt 0:04:36]} Nf6 {[%emt 0:01:31]} 16. f3 {[%emt 0:02:42]} e5 {[%emt 0:01:54]} 17. Be2 {[%emt 0:05:35]} e4 {[%emt 0:04:24]} 18. O-O {[%emt 0:01:33]} Rhe8 {[%emt 0:02:02]} 19. Bd4 {[%emt 0:02:01]} e3 {[%emt 0:07:58]} 20. Rfe1 {[%emt 0:02:01]} Nd5 {[%emt 0:01:42][%cal Od5b4]} 21. Bf1 {[%emt 0:08:17]} (21. Bxg7 $16 h5 22. Bc4) 21... Rd6 {[%emt 0:07:42]} (21... Nb4 $1 $11 {remains equal.}) 22. g3 {[%emt 0:07:56]} (22. Bxg7 Nf4 23. g3 e2 24. gxf4 Rg6+ 25. Bg2 Bh3 $17) 22... Rde6 {[%emt 0:05:41]} 23. Bc4 {[%emt 0:00:53] A strong pair of Bishops.} g5 {[%emt 0:12:36]} (23... e2 $2 24. Kf2 $16) 24. a4 {[%emt 0:05:11]} a5 {[%emt 0:04:48]} (24... e2 25. b4 $16) 25. Ra3 {[%emt 0:02:29]} Bc2 {[%emt 0:00:09] Against Rb3+} 26. Ra2 {[%emt 0:02:08][%cal Ob2b4] Hoping for b4!} Bg6 {[%emt 0:10:07]} (26... e2 $2 27. b4 Bd1 28. bxa5 $18) 27. b4 {[%emt 0:01:30]} axb4 {[%emt 0:00:49]} 28. cxb4 {[%emt 0:00:04]} g4 $1 {[%emt 0:00:26]} 29. Be2 {[%emt 0:03:07]} (29. fxg4 Re4 30. Bxd5 cxd5 $17) (29. Bxd5 $5 cxd5 30. Rae2 $11 (30. fxg4 Re4 $17)) 29... Bd3 $2 {[%emt 0:09:23][%mdl 8192]} 30. Bxd3 $18 {[%emt 0:01:01]} gxf3 {[%emt 0:00:06] ...f2+ is the strong threat.} 31. Rc1 $2 {[%emt 0:01:51]} (31. Kf1 $18) 31... e2 {[%emt 0:02:40]} (31... Rd6 $11 {keeps the balance.} 32. Bc5 (32. Bxh7 Nxb4 33. Bxe3 Nxa2 $17) 32... Nf4 33. gxf4 (33. Bxd6 Nxd3 34. Rf1 e2 $11) (33. Ba6+ Kxa6 34. b5+ Ka5 $11) 33... Rxd3) 32. Re1 {[%emt 0:00:27]} (32. Bf2 $142 $1) 32... Rd6 $16 {[%emt 0:08:21]} 33. Bc5 {[%emt 0:01:20]} (33. Bf5 $16) 33... Nf4 $1 $11 {[%emt 0:01:18]} 34. Ba6+ {[%emt 0:03:44]} (34. Bxd6 $2 Nxd3 35. Raxe2 fxe2 $19) (34. Bxh7 Nh3+ 35. Kh1 Rd1 36. Ra1 Rxa1 37. Bb1 Rxb1 $1 {[%mdl 512]} 38. Rg1 Rxg1+ 39. Bxg1 e1=Q 40. g4 Qxg1#) 34... Kxa6 {[%emt 0:00:15] Really sharp!} 35. gxf4 {[%emt 0:00:24]} (35. Bxd6 $2 {too greedy.} Nd3 36. Raxe2 (36. b5+ $2 cxb5 37. axb5+ Kb6 $19) 36... fxe2 $19) 35... Rg8+ {[%emt 0:00:22]} ({Black should play} 35... Rd1 $1 $11 36. Kf2 Red8 37. b5+ (37. Ra3 $2 Rxe1 38. Rxf3 Ra1 $19) 37... cxb5) 36. Kh1 $2 {[%emt 0:00:46][%mdl 8192]} (36. Kf2 $14 Rd3 37. Be3) 36... Rd1 $19 {[%emt 0:00:51]} 37. Ra1 {[%emt 0:00:38]} Rd3 {[%emt 0:01:16]} (37... Rgd8 {mates} 38. b5+ cxb5 39. Kg1 Rxa1 40. Rxa1 Rd1+ 41. Rxd1 exd1=Q+ 42. Kf2 bxa4 43. Kg3 Qc2 44. Bd4 Qg2+ 45. Kh4 a3 46. h3 a2 47. Bf6 f2 48. Bg5 f1=Q 49. Kh5 Qxh3+ 50. Bh4 Qf5+ 51. Bg5 Q1h3#) 38. Ra2 $2 {[%emt 0:00:39][%mdl 8192] [#]} (38. Bf2 $1 $14 {keeps the upper hand.}) 38... Rd1 $2 {[%emt 0:00:08]} (38... f5 $1 $19 {And now ...Rd1 would win.} 39. Bf2 Rd1) 39. Bf2 $2 {[%emt 0:00:28][%mdl 8192]} (39. Ra1 $11 {and White stays safe.} Rgd8 40. h3 Rxa1 41. Rxa1 Rd1+ 42. Kh2) 39... Rg2 {[%emt 0:00:07]} 40. Raxe2 {[%emt 0:00:27] [#]} Rxf2 $1 {[%emt 0:00:44] Black mates.} 41. b5+ {[%emt 0:00:00]} Ka5 {[%emt 0:00:00]} 42. Kg1 {[%emt 0:00:00]} Rg2+ $1 {[%emt 0:00:00]} 43. Rxg2 {[%emt 0:00:00]} Rxe1+ {[%emt 0:00:00]} 44. Kf2 {[%emt 0:00:00]} fxg2 {[%emt 0:00:00] Weighted Error Value: White=0.91/Black=0.42} 0-1

[Event "GER-ch Youth-U16 2022"]
[Site "Willingen"]
[Date "2022.06.05"]
[Round "2.8"]
[White "Mimkes, Antal"]
[Black "Ehrig, Leon Chris"]
[Result "1-0"]
[ECO "B40"]
[WhiteElo "1696"]
[BlackElo "1890"]
[Annotator "NA RC COMBH"]
[PlyCount "48"]
[EventDate "2022.06.05"]
[EventType "swiss"]
[EventRounds "9"]
[EventCountry "GER"]
[SourceTitle "playchess.com"]
[Source "ChessBase"]
[SourceQuality "1"]
[TimeControl "40/4500+30:900+30"]

1. e4 {[%emt 0:00:00]} c5 {[%emt 0:00:00]} 2. Nf3 {[%emt 0:00:00]} e6 {[%emt 0:00:00]} 3. d4 {[%emt 0:00:00]} cxd4 {[%emt 0:00:00]} 4. Nxd4 {[%emt 0:00:00]} Nf6 {[%emt 0:00:00]} 5. Nc3 {[%emt 0:00:00]} Nc6 {[%emt 0:00:00]} 6. Bc4 {[%emt 0:00:00]} Bb4 {[%emt 0:00:00]} 7. O-O {[%emt 0:00:00]} Bxc3 {[%emt 0:00:00]} 8. bxc3 {[%emt 0:00:00]} Nxe4 {[%emt 0:00:00]} 9. Qg4 {[%emt 0:00:00]} Nf6 $16 {[%emt 0:16:30]} (9... Nxd4 $11 10. cxd4 (10. Qxg7 Nf3+ 11. gxf3 Qf6 $15) 10... O-O) 10. Qxg7 {[%emt 0:00:00]} Rg8 {[%emt 0:00:15]} 11. Qh6 {[%emt 0:00:00]} Rg6 {[%emt 0:04:11]} 12. Qe3 {[%emt 0:00:00]} Ng4 {[%emt 0:04:08]} 13. Qh3 {[%emt 0:01:15]} Nce5 {[%emt 0:15:36]} 14. Bd3 {[%emt 0:06:13]} Nxd3 15. cxd3 {[%emt 0:00:24]} b6 {[%emt 0:19:16]} 16. Nb5 {[%emt 0:04:32]} d6 {[%emt 0:00:59]} 17. Ba3 {[%emt 0:00:38]} e5 {[%emt 0:01:35]} 18. Qxh7 {[%emt 0:03:07]} Qd7 {[%emt 0:11:27]} 19. Nxd6+ {[%emt 0:11:43]} Rxd6 {[%emt 0:00:37]} 20. h3 {[%emt 0:03:53]} Nf6 {[%emt 0:04:12]} 21. Qh8+ {[%emt 0:02:35]} Ke7 {[%emt 0:00:11]} 22. Rfe1 {[%emt 0:02:01]} Ke6 {[%emt 0:00:52]} 23. f4 {[%emt 0:04:48]} e4 {[%emt 0:01:07]} 24. Rxe4+ Kd5 1-0